Workbook

Sheet DISNEY COST EX-WORKS
A2: ORDER CONFIRMATION
A3: CLIENTE NAME:
A4: DATE: | B4: =TODAY() -> 2025-03-24
A5: TOTAL WEIGHT | B5: =Q343 -> 0 | C5: Max weight x Container 26,000
A6: TOTAL BOXES | B6: =O343 -> 0
A7: TOTAL CBM | B7: =R343 -> 0.00 | C7: Max CBM x Container 75 CBM
A8: TOTAL PIECES | B8: =P343 -> 0 | Y8: Assorted
A9: TOTAL PRICE (EX-WORKS) | B9: =S343 -> 0 | Y9: Mickey-Minnie
Y10: Marvel - Iron Man / Spidey / Miles
Y11: Princess / Fronzen
Y12: Stich
A13: Imagen Producto / Product Image | B13: CATEGORY | C13: ITEM # | D13: BAR CODE | E13: Descripcion / Description | F13: ITEM Dimensions (Inches) | G13: Medidas cm / Dimensions | H13: Units per BOX | I13: Inner Pack | J13: ITEM weight in KG | K13: BOX size in CM | L13: BOX weight KG | M13: CBM per BOX | N13: Cost of piece | O13: ASSORTED CASES | P13: ASSORTED Total Pieces / Total Pieces | Q13: Total Weight | R13: Total CBM | S13: assorted Total $
B14: DIDACTIC GAMES | C14: LCD-0001-01 | D14: 0630902092898 | E14: Tie your shoelaces - Mickey Ata tus agujetas - Mickey | F14: 5.51 x 11.41 in | G14: 14 x 29 cm | H14: 20 | I14: 0 | J14: 0.137 | K14: 30.2x15.6x 11.2 | L14: =J14*H14 -> 2.74 | M14: =0.3*0.156*0.112 -> 0.0052416 | N14: $1.05 | P14: =O14*H14 -> 0 | Q14: =O14*L14 -> 0 | R14: =O14*M14 -> 0.00 | S14: =N14*P14 -> 0
B15: DIDACTIC GAMES | C15: LCD-0001-02 | D15: 0630902092904 | E15: Tie your shoelaces - Minnie Ata tus agujetas - Minnie | F15: 5.51 x 11.41 in | G15: 14 x 29 cm | H15: 20 | I15: 0 | J15: 0.137 | K15: 30.2x15.6x 11.2 | L15: =J15*H15 -> 2.74 | M15: =0.3*0.156*0.112 -> 0.0052416 | N15: $1.05 | P15: =O15*H15 -> 0 | Q15: =O15*L15 -> 0 | R15: =O15*M15 -> 0.00 | S15: =N15*P15 -> 0
B16: DIDACTIC GAMES | C16: LCD-0001-04 | D16: 0630902092928 | E16: Tie your shoelaces - Frozen Ata tus agujetas - Frozen | F16: 5.51 x 11.41 in | G16: 14 x 29 cm | H16: 20 | I16: 0 | J16: 0.137 | K16: 30.2x15.6x 11.2 | L16: 2.74 | M16: 0.0052416 | N16: $1.05 | P16: 0 | Q16: 0 | R16: 0.00 | S16: 0
B17: DIDACTIC GAMES | C17: LCD-0001-06 | D17: 0630902097312 | E17: Tie your shoelaces - Princesas Ata tus agujetas - Princeesas | F17: 5.51 x 11.41 in | G17: 14 x 29 cm | H17: 20 | I17: 0 | J17: 0.137 | K17: 30.2x15.6x 11.2 | L17: 2.74 | M17: 0.0052416 | N17: $1.05 | P17: 0 | Q17: 0 | R17: 0.00 | S17: 0
B18: DIDACTIC GAMES | C18: LCD-0001-05 | D18: 0630902092935 | E18: Tie your shoelaces - Spidey Ata tus agujetas - Spidey | F18: 5.51 x 11.41 in | G18: 14 x 29 cm | H18: 20 | I18: 0 | J18: 0.137 | K18: 30.2x15.6x 11.2 | L18: 2.74 | M18: 0.0052416 | N18: $1.05 | P18: 0 | Q18: 0 | R18: 0.00 | S18: 0
B19: DIDACTIC GAMES | C19: LCD-0001-07 | D19: 0630902097329 | E19: Tie your shoelaces -Miles Ata tus agujetas - Miles | F19: 5.51 x 11.41 in | G19: 14 x 29 cm | H19: 20 | I19: 0 | J19: 0.137 | K19: 30.2x15.6x 11.2 | L19: =J19*H19 -> 2.74 | M19: 0.0052416 | N19: $1.05 | P19: 0 | Q19: 0 | R19: 0.00 | S19: 0
B20: DIDACTIC GAMES | C20: LCD-0001-08 | D20: 0630902097336 | E20: Tie your shoelaces - Stitch Ata tus agujetas - Stitch | F20: 5.51 x 11.41 in | G20: 14 x 29 cm | H20: 20 | I20: 0 | J20: 0.137 | K20: 30.2x15.6x 11.2 | L20: 2.74 | M20: 0.0052416 | N20: $1.05 | P20: 0 | Q20: 0 | R20: 0.00 | S20: 0
B21: DIDACTIC GAMES | C21: LCD-0002-01 | D21: 0630902092843 | E21: Body parts - Mickey Partes del cuerpo - Mickey | F21: 5.51 x 11.41 in | G21: 14 x 29 cm | H21: 20 | I21: 0 | J21: 0.137 | K21: 30.2x15.6x 11.2 | L21: 2.74 | M21: 0.0052416 | N21: $1.05 | P21: 0 | Q21: 0 | R21: 0.00 | S21: 0
B22: DIDACTIC GAMES | C22: LCD-0002-02 | D22: 0630902092850 | E22: Body parts - Minnie Partes del cuerpo - Minnie | F22: 5.51 x 11.41 in | G22: 14 x 29 cm | H22: 20 | I22: 0 | J22: 0.137 | K22: 30.2x15.6x 11.2 | L22: 2.74 | M22: 0.0052416 | N22: $1.05 | P22: 0 | Q22: 0 | R22: 0.00 | S22: 0
B23: DIDACTIC GAMES | C23: LCD-0002-06 | D23: 0630902097343 | E23: Body parts - Spidey Partes del cuerpo - Spidey | F23: 5.51 x 11.41 in | G23: 14 x 29 cm | H23: 20 | I23: 0 | J23: 0.137 | K23: 30.2x15.6x 11.2 | L23: 2.74 | M23: 0.0052416 | N23: $1.05 | P23: 0 | Q23: 0 | R23: 0.00 | S23: 0
B24: DIDACTIC GAMES | C24: LCD-0002-07 | D24: 0630902097350 | E24: Body parts - Miles Partes del cuerpo - Miles | F24: 5.51 x 11.41 in | G24: 14 x 29 cm | H24: 20 | I24: 0 | J24: 0.137 | K24: 30.2x15.6x 11.2 | L24: 2.74 | M24: 0.0052416 | N24: $1.05 | P24: 0 | Q24: 0 | R24: 0.00 | S24: 0
B25: DIDACTIC GAMES | C25: LCD-0002-03 | D25: 0630902092867 | E25: Body parts - Frozen Partes del cuerpo - Frozen | F25: 5.51 x 11.41 in | G25: 14 x 29 cm | H25: 20 | I25: 0 | J25: 0.137 | K25: 30.2x15.6x 11.2 | L25: 2.74 | M25: 0.0052416 | N25: $1.05 | P25: 0 | Q25: 0 | R25: 0.00 | S25: 0
B26: DIDACTIC GAMES | C26: LCD-0002-05 | D26: 0630902092881 | E26: Body parts - Princess Partes del cuerpo - Princesas | F26: 5.51 x 11.41 in | G26: 14 x 29 cm | H26: 20 | I26: 0 | J26: 0.137 | K26: 30.2x15.6x 11.2 | L26: =J26*H26 -> 2.74 | M26: 0.0052416 | N26: $1.05 | P26: 0 | Q26: 0 | R26: 0.00 | S26: 0
B27: DIDACTIC GAMES | C27: LCD-0002-08 | D27: 0683828625145 | E27: Body parts - Stitch Partes del cuerpo - Stitch | F27: 5.51 x 11.41 in | G27: 14 x 29 cm | H27: 20 | I27: 0 | J27: 0.137 | K27: 30.2x15.6x 11.2 | L27: 2.74 | M27: 0.0052416 | N27: $1.05 | P27: 0 | Q27: 0 | R27: 0.00 | S27: 0
B28: DIDACTIC GAMES | C28: LCD-0003-01 | D28: 0630902092942 | E28: Trace number - Mickey Traza el número - Mickey | F28: 5.51 x 11.41 in | G28: 14 x 29 cm | H28: 20 | I28: 0 | J28: 0.137 | K28: 30.2x15.6x 11.2 | L28: 2.74 | M28: 0.0052416 | N28: $1.05 | P28: 0 | Q28: 0 | R28: 0.00 | S28: 0
B29: DIDACTIC GAMES | C29: LCD-0003-02 | D29: 0630902092959 | E29: Trace number - Minnie Traza el número - Minnie | F29: 5.51 x 11.41 in | G29: 14 x 29 cm | H29: 20 | I29: 0 | J29: 0.137 | K29: 30.2x15.6x 11.2 | L29: 2.74 | M29: 0.0052416 | N29: $1.05 | P29: 0 | Q29: 0 | R29: 0.00 | S29: 0
B30: DIDACTIC GAMES | C30: LCD-0003-05 | D30: 0630902092980 | E30: Trace number - Spidey Traza el número - Spidey | F30: 5.51 x 11.41 in | G30: 14 x 29 cm | H30: 20 | I30: 0 | J30: 0.137 | K30: 30.2x15.6x 11.2 | L30: 2.74 | M30: 0.0052416 | N30: $1.05 | P30: 0 | Q30: 0 | R30: 0.00 | S30: 0
B31: DIDACTIC GAMES | C31: LCD-0003-06 | D31: 0630902097367 | E31: Trace number - Miles Traza el número -Miles | F31: 5.51 x 11.41 in | G31: 14 x 29 cm | H31: 20 | I31: 0 | J31: 0.137 | K31: 30.2x15.6x 11.2 | L31: 2.74 | M31: 0.0052416 | N31: $1.05 | P31: 0 | Q31: 0 | R31: 0.00 | S31: 0
B32: DIDACTIC GAMES | C32: LCD-0003-03 | D32: 0630902092966 | E32: Trace number - Frozen Traza el número - Frozen | F32: 5.51 x 11.41 in | G32: 14 x 29 cm | H32: 20 | I32: 0 | J32: 0.137 | K32: 30.2x15.6x 11.2 | L32: 2.74 | M32: 0.0052416 | N32: $1.05 | P32: 0 | Q32: 0 | R32: 0.00 | S32: 0
B33: DIDACTIC GAMES | C33: LCD-0003-07 | D33: 0630902097374 | E33: Trace number - Princess Traza el número - Princesas | F33: 5.51 x 11.41 in | G33: 14 x 29 cm | H33: 20 | I33: 0 | J33: 0.137 | K33: 30.2x15.6x 11.2 | L33: 2.74 | M33: 0.0052416 | N33: $1.05 | P33: 0 | Q33: 0 | R33: 0.00 | S33: 0
B34: DIDACTIC GAMES | C34: LCD-0003-08 | D34: 0630902097381 | E34: Trace number - Stitch Traza el número - Stitch | F34: 5.51 x 11.41 in | G34: 14 x 29 cm | H34: 20 | I34: 0 | J34: 0.137 | K34: 30.2x15.6x 11.2 | L34: 2.74 | M34: 0.0052416 | N34: $1.05 | P34: 0 | Q34: 0 | R34: 0.00 | S34: 0
B35: DIDACTIC GAMES | C35: LCD-0005-01 | D35: 0630902092997 | E35: Geometric figures -Mickey Figuras Geométricas - Mickey | F35: 5.51 x 11.41 in | G35: 14 x 29 cm | H35: 20 | I35: 0 | J35: 0.137 | K35: 30.2x15.6x 11.2 | L35: 2.74 | M35: 0.0052416 | N35: $1.05 | P35: 0 | Q35: 0 | R35: 0.00 | S35: 0
B36: DIDACTIC GAMES | C36: LCD-0005-02 | D36: 0630902093000 | E36: Geometric figures -Minnie Figuras Geométricas - Minnie | F36: 5.51 x 11.41 in | G36: 14 x 29 cm | H36: 20 | I36: 0 | J36: 0.137 | K36: 30.2x15.6x 11.2 | L36: 2.74 | M36: 0.0052416 | N36: $1.05 | P36: 0 | Q36: 0 | R36: 0.00 | S36: 0
B37: DIDACTIC GAMES | C37: LCD-0005-05 | D37: 0630902093031 | E37: Geometric figures -Spidey Figuras Geométricas - Spidey | F37: 5.51 x 11.41 in | G37: 14 x 29 cm | H37: 20 | I37: 0 | J37: 0.137 | K37: 30.2x15.6x 11.2 | L37: 2.74 | M37: 0.0052416 | N37: $1.05 | P37: 0 | Q37: 0 | R37: 0.00 | S37: 0
B38: DIDACTIC GAMES | C38: LCD-0005-06 | D38: 0630902097398 | E38: Geometric figures - Miles Figuras Geométricas - Miles | F38: 5.51 x 11.41 in | G38: 14 x 29 cm | H38: 20 | I38: 0 | J38: 0.137 | K38: 30.2x15.6x 11.2 | L38: 2.74 | M38: 0.0052416 | N38: $1.05 | P38: 0 | Q38: 0 | R38: 0.00 | S38: 0
B39: DIDACTIC GAMES | C39: LCD-0005-03 | D39: 0630902093017 | E39: Geometric figures -Frozen Figuras Geométricas - Frozen | F39: 5.51 x 11.41 in | G39: 14 x 29 cm | H39: 20 | I39: 0 | J39: 0.137 | K39: 30.2x15.6x 11.2 | L39: 2.74 | M39: 0.0052416 | N39: $1.05 | P39: 0 | Q39: 0 | R39: 0.00 | S39: 0
B40: DIDACTIC GAMES | C40: LCD-0005-07 | D40: 0630902097404 | E40: Geometric figures -Princess Figuras Geométricas - Princesas | F40: 5.51 x 11.41 in | G40: 14 x 29 cm | H40: 20 | I40: 0 | J40: 0.137 | K40: 30.2x15.6x 11.2 | L40: 2.74 | M40: 0.0052416 | N40: $1.05 | P40: 0 | Q40: 0 | R40: 0.00 | S40: 0
B41: DIDACTIC GAMES | C41: LCD-0005-08 | D41: 0630902097411 | E41: Geometric figures -Stitch Figuras Geométricas - Stitch | F41: 5.51 x 11.41 in | G41: 14 x 29 cm | H41: 20 | I41: 0 | J41: 0.137 | K41: 30.2x15.6x 11.2 | L41: 2.74 | M41: 0.0052416 | N41: $1.05 | P41: 0 | Q41: 0 | R41: 0.00 | S41: 0
B42: DIDACTIC GAMES | C42: LCD-0006-01 | D42: 0630902093819 | E42: Educational board - Mickey Tabla educativa - Mickey | F42: 5.51 x 11.41 in | G42: 14 x 29 cm | H42: 20 | I42: 0 | J42: 0.137 | K42: 30.2x15.6x 11.2 | L42: 2.74 | M42: 0.0052416 | N42: $1.05 | P42: 0 | Q42: 0 | R42: 0.00 | S42: 0
B43: DIDACTIC GAMES | C43: LCD-0006-02 | D43: 0630902093826 | E43: Educational board - Minnie Tabla educativa - Minnie | F43: 5.51 x 11.41 in | G43: 14 x 29 cm | H43: 20 | I43: 0 | J43: 0.137 | K43: 30.2x15.6x 11.2 | L43: 2.74 | M43: 0.0052416 | N43: $1.05 | P43: 0 | Q43: 0 | R43: 0.00 | S43: 0
B44: DIDACTIC GAMES | C44: LCD-0006-04 | D44: 0630902093840 | E44: Educational board - Spidey Tabla educativa - Spidey | F44: 5.51 x 11.41 in | G44: 14 x 29 cm | H44: 20 | I44: 0 | J44: 0.137 | K44: 30.2x15.6x 11.2 | L44: 2.74 | M44: 0.0052416 | N44: $1.05 | P44: 0 | Q44: 0 | R44: 0.00 | S44: 0
B45: DIDACTIC GAMES | C45: LCD-0006-06 | D45: 0630902097428 | E45: Educational board - Miles Tabla educativa - Miles | F45: 5.51 x 11.41 in | G45: 14 x 29 cm | H45: 20 | I45: 0 | J45: 0.137 | K45: 30.2x15.6x 11.2 | L45: 2.74 | M45: 0.0052416 | N45: $1.05 | P45: 0 | Q45: 0 | R45: 0.00 | S45: 0
B46: DIDACTIC GAMES | C46: LCD-0006-05 | D46: 0630902093857 | E46: Educational board - Frozen Tabla educativa - Frozen | F46: 5.51 x 11.41 in | G46: 14 x 29 cm | H46: 20 | I46: 0 | J46: 0.137 | K46: 30.2x15.6x 11.2 | L46: 2.74 | M46: =0.3*0.156*0.112 -> 0.0052416 | N46: $1.05 | P46: 0 | Q46: 0 | R46: 0.00 | S46: 0
B47: DIDACTIC GAMES | C47: LCD-0006-07 | D47: 0630902097435 | E47: Educational board - Princess Tabla educativa - Princesas | F47: 5.51 x 11.41 in | G47: 14 x 29 cm | H47: 20 | I47: 0 | J47: 0.137 | K47: 30.2x15.6x 11.2 | L47: 2.74 | M47: 0.0052416 | N47: $1.05 | P47: 0 | Q47: 0 | R47: 0.00 | S47: 0
B48: DIDACTIC GAMES | C48: LCD-0006-08 | D48: 0630902097442 | E48: Educational board - Stitch Tabla educativa - Stitch | F48: 5.51 x 11.41 in | G48: 14 x 29 cm | H48: 20 | I48: 0 | J48: 0.137 | K48: 30.2x15.6x 11.2 | L48: 2.74 | M48: 0.0052416 | N48: $1.05 | P48: 0 | Q48: 0 | R48: 0.00 | S48: 0
B49: DIDACTIC GAMES | C49: LCD-0007-01 | D49: 0630902093147 | E49: Finger puppets - Mickey Marioneta de dedo - Mickey | F49: 5.51 x 11.41 in | G49: 14 x 29 cm | H49: 20 | I49: 0 | J49: 0.137 | K49: 30.2x15.6x 11.2 | L49: 2.74 | M49: 0.0052416 | N49: $1.05 | P49: 0 | Q49: 0 | R49: 0.00 | S49: 0
B50: DIDACTIC GAMES | C50: LCD-0007-02 | D50: 0630902093154 | E50: Finger puppets - Minnie Marioneta de dedo - Minnie | F50: 5.51 x 11.41 in | G50: 14 x 29 cm | H50: 20 | I50: 0 | J50: 0.137 | K50: 30.2x15.6x 11.2 | L50: 2.74 | M50: 0.0052416 | N50: $1.05 | P50: 0 | Q50: 0 | R50: 0.00 | S50: 0
B51: DIDACTIC GAMES | C51: LCD-0007-06 | D51: 0630902097459 | E51: Finger puppets - Spidey Marioneta de dedo - Spidey | F51: 5.51 x 11.41 in | G51: 14 x 29 cm | H51: 20 | I51: 0 | J51: 0.137 | K51: 30.2x15.6x 11.2 | L51: 2.74 | M51: 0.0052416 | N51: $1.05 | P51: 0 | Q51: 0 | R51: 0.00 | S51: 0
B52: DIDACTIC GAMES | C52: LCD-0007-07 | D52: 0630902097466 | E52: Finger puppets - Miles Marioneta de dedo - Miles | F52: 5.51 x 11.41 in | G52: 14 x 29 cm | H52: 20 | I52: 0 | J52: 0.137 | K52: 30.2x15.6x 11.2 | L52: 2.74 | M52: 0.0052416 | N52: $1.05 | P52: 0 | Q52: 0 | R52: 0.00 | S52: 0
B53: DIDACTIC GAMES | C53: LCD-0007-03 | D53: 0630902093161 | E53: Finger puppets - Frozen Marioneta de dedo - Frozen | F53: 5.51 x 11.41 in | G53: 14 x 29 cm | H53: 20 | I53: 0 | J53: 0.137 | K53: 30.2x15.6x 11.2 | L53: 2.74 | M53: 0.0052416 | N53: $1.05 | P53: 0 | Q53: 0 | R53: 0.00 | S53: 0
B54: DIDACTIC GAMES | C54: LCD-0007-05 | D54: 0630902093185 | E54: Finger puppets - Princess Marioneta de dedo - Princesas | F54: 5.51 x 11.41 in | G54: 14 x 29 cm | H54: 20 | I54: 0 | J54: 0.137 | K54: 30.2x15.6x 11.2 | L54: 2.74 | M54: 0.0052416 | N54: $1.05 | P54: 0 | Q54: 0 | R54: 0.00 | S54: 0
B55: DIDACTIC GAMES | C55: LCD-0007-08 | D55: 0630902097473 | E55: Finger puppets - Stitch Marioneta de dedo - Stitch | F55: 5.51 x 11.41 in | G55: 14 x 29 cm | H55: 20 | I55: 0 | J55: 0.137 | K55: 30.2x15.6x 11.2 | L55: 2.74 | M55: 0.0052416 | N55: $1.05 | P55: 0 | Q55: 0 | R55: 0.00 | S55: 0
B56: DIDACTIC GAMES | C56: LCD-0008-01 | D56: 0630902093192 | E56: Table Hockey - Mickey Hockey de mesa - Mickey | F56: 5.51 x 11.41 in | G56: 14 x 29 cm | H56: 20 | I56: 0 | J56: 0.137 | K56: 30.2x15.6x 11.2 | L56: 2.74 | M56: 0.0052416 | N56: $1.05 | P56: 0 | Q56: 0 | R56: 0.00 | S56: 0
B57: DIDACTIC GAMES | C57: LCD-0008-04 | D57: 0630902093222 | E57: Table Hockey - Spidey Hockey de mesa - Spidey | F57: 5.51 x 11.41 in | G57: 14 x 29 cm | H57: 20 | I57: 0 | J57: 0.137 | K57: 30.2x15.6x 11.2 | L57: 2.74 | M57: 0.0052416 | N57: $1.05 | P57: 0 | Q57: 0 | R57: 0.00 | S57: 0
B58: DIDACTIC GAMES | C58: LCD-0008-06 | D58: 0630902097480 | E58: Table Hockey - Miles Hockey de mesa - Miles | F58: 5.51 x 11.41 in | G58: 14 x 29 cm | H58: 20 | I58: 0 | J58: 0.137 | K58: 30.2x15.6x 11.2 | L58: 2.74 | M58: 0.0052416 | N58: $1.05 | P58: 0 | Q58: 0 | R58: 0.00 | S58: 0
B59: DIDACTIC GAMES | C59: LCD-0008-07 | D59: 0630902097497 | E59: Table Hockey - Stitch Hockey de mesa - Stitch | F59: 5.51 x 11.41 in | G59: 14 x 29 cm | H59: 20 | I59: 0 | J59: 0.137 | K59: 30.2x15.6x 11.2 | L59: 2.74 | M59: 0.0052416 | N59: $1.05 | P59: 0 | Q59: 0 | R59: 0.00 | S59: 0
B60: DIDACTIC GAMES | C60: LCD-0009-01 | D60: 0630902093260 | E60: 3D puzzle - Mickey Rompecabezas 3d - Mickey | F60: 5.51 x 11.41 in | G60: 14 x 29 cm | H60: 20 | I60: 0 | J60: 0.137 | K60: 30.2x15.6x 11.2 | L60: 2.74 | M60: 0.0052416 | N60: $1.05 | P60: 0 | Q60: 0 | R60: 0.00 | S60: 0
B61: DIDACTIC GAMES | C61: LCD-0009-02 | D61: 0630902093277 | E61: 3D puzzle Minnie Rompecabezas 3d - Minnie | F61: 5.51 x 11.41 in | G61: 14 x 29 cm | H61: 20 | I61: 0 | J61: 0.137 | K61: 30.2x15.6x 11.2 | L61: 2.74 | M61: 0.0052416 | N61: $1.05 | P61: 0 | Q61: 0 | R61: 0.00 | S61: 0
B62: DIDACTIC GAMES | C62: LCD-0009-07 | D62: 0630902097503 | E62: 3D puzzle - Spidey Rompecabezas 3d - Spidey | F62: 5.51 x 11.41 in | G62: 14 x 29 cm | H62: 20 | I62: 0 | J62: 0.137 | K62: 30.2x15.6x 11.2 | L62: 2.74 | M62: 0.0052416 | N62: $1.05 | P62: 0 | Q62: 0 | R62: 0.00 | S62: 0
B63: DIDACTIC GAMES | C63: LCD-0009-08 | D63: 0630902097510 | E63: 3D puzzle - Miles Rompecabezas 3d - Miles | F63: 5.51 x 11.41 in | G63: 14 x 29 cm | H63: 20 | I63: 0 | J63: 0.137 | K63: 30.2x15.6x 11.2 | L63: 2.74 | M63: 0.0052416 | N63: $1.05 | P63: 0 | Q63: 0 | R63: 0.00 | S63: 0
B64: DIDACTIC GAMES | C64: LCD-0009-03 | D64: 0630902093284 | E64: 3D puzzle - Frozen Rompecabezas 3d - Frozen | F64: 5.51 x 11.41 in | G64: 14 x 29 cm | H64: 20 | I64: 0 | J64: 0.137 | K64: 30.2x15.6x 11.2 | L64: 2.74 | M64: 0.0052416 | N64: $1.05 | P64: 0 | Q64: 0 | R64: 0.00 | S64: 0
B65: DIDACTIC GAMES | C65: LCD-0009-09 | D65: 0630902097527 | E65: 3D puzzle - Princesas Rompecabezas 3d - Princesas | F65: 5.51 x 11.41 in | G65: 14 x 29 cm | H65: 20 | I65: 0 | J65: 0.137 | K65: 30.2x15.6x 11.2 | L65: 2.74 | M65: 0.0052416 | N65: $1.05 | P65: 0 | Q65: 0 | R65: 0.00 | S65: 0
B66: DIDACTIC GAMES | C66: LCD-0009-10 | D66: 0630902097534 | E66: 3D puzzle Stitch Rompecabezas 3d - Stitch | F66: 5.51 x 11.41 in | G66: 14 x 29 cm | H66: 20 | I66: 0 | J66: 0.137 | K66: 30.2x15.6x 11.2 | L66: 2.74 | M66: 0.0052416 | N66: $1.05 | P66: 0 | Q66: 0 | R66: 0.00 | S66: 0
B67: DIDACTIC GAMES | C67: LCD-0010-01 | D67: 0630902093864 | E67: Race track - Mickey Pista de carreras - Mickey | F67: 5.51 x 11.41 in | G67: 14 x 29 cm | H67: 20 | I67: 0 | J67: 0.137 | K67: 30.2x15.6x 11.2 | L67: 2.74 | M67: 0.0052416 | N67: $1.05 | P67: 0 | Q67: 0 | R67: 0.00 | S67: 0
B68: DIDACTIC GAMES | C68: LCD-0010-04 | D68: 0630902093901 | E68: Race track - Spidey Pista de carreras - Spidey | F68: 5.51 x 11.41 in | G68: 14 x 29 cm | H68: 20 | I68: 0 | J68: 0.137 | K68: 30.2x15.6x 11.2 | L68: 2.74 | M68: 0.0052416 | N68: $1.05 | P68: 0 | Q68: 0 | R68: 0.00 | S68: 0
B69: DIDACTIC GAMES | C69: LCD-0010-05 | D69: 0630902097541 | E69: Race track -- Miles Pista de carreras - Miles | F69: 5.51 x 11.41 in | G69: 14 x 29 cm | H69: 20 | I69: 0 | J69: 0.137 | K69: 30.2x15.6x 11.2 | L69: 2.74 | M69: 0.0052416 | N69: $1.05 | P69: 0 | Q69: 0 | R69: 0.00 | S69: 0
B70: DIDACTIC GAMES | C70: LCD-0010-06 | D70: 0630902097558 | E70: Race track -- Stitch Pista de carreras - Stitch | F70: 5.51 x 11.41 in | G70: 14 x 29 cm | H70: 20 | I70: 0 | J70: 0.137 | K70: 30.2x15.6x 11.2 | L70: 2.74 | M70: 0.0052416 | N70: $1.05 | P70: 0 | Q70: 0 | R70: 0.00 | S70: 0
B71: DIDACTIC GAMES | C71: LCD-0011-01 | D71: 0630902093918 | E71: Learning board - Colors Mickey Tabla de aprendizaje - Colores Mickey | F71: 5.51 x 11.41 in | G71: 14 x 29 cm | H71: 20 | I71: 0 | J71: 0.137 | K71: 30.2x15.6x 11.2 | L71: 2.74 | M71: 0.0052416 | N71: $1.05 | P71: 0 | Q71: 0 | R71: 0.00 | S71: 0
B72: DIDACTIC GAMES | C72: LCD-0011-02 | D72: 0630902093925 | E72: Learning board - Colors Minnie Tabla de aprendizaje - Colores Minnie | F72: 5.51 x 11.41 in | G72: 14 x 29 cm | H72: 20 | I72: 0 | J72: 0.137 | K72: 30.2x15.6x 11.2 | L72: 2.74 | M72: 0.0052416 | N72: $1.05 | P72: 0 | Q72: 0 | R72: 0.00 | S72: 0
B73: DIDACTIC GAMES | C73: LCD-0011-04 | D73: 0630902093949 | E73: Learning board - Colors Spidey Tabla de aprendizaje - Colores Spidey | F73: 5.51 x 11.41 in | G73: 14 x 29 cm | H73: 20 | I73: 0 | J73: 0.137 | K73: 30.2x15.6x 11.2 | L73: 2.74 | M73: 0.0052416 | N73: $1.05 | P73: 0 | Q73: 0 | R73: 0.00 | S73: 0
B74: DIDACTIC GAMES | C74: LCD-0011-06 | D74: 0630902097565 | E74: Learning board - Colors Miles Tabla de aprendizaje - Colores Miles | F74: 5.51 x 11.41 in | G74: 14 x 29 cm | H74: 20 | I74: 0 | J74: 0.137 | K74: 30.2x15.6x 11.2 | L74: 2.74 | M74: 0.0052416 | N74: $1.05 | P74: 0 | Q74: 0 | R74: 0.00 | S74: 0
B75: DIDACTIC GAMES | C75: LCD-0011-07 | D75: 0630902097572 | E75: Learning board - Colors Princess Tabla de aprendizaje - Colores Princesas | F75: 5.51 x 11.41 in | G75: 14 x 29 cm | H75: 20 | I75: 0 | J75: 0.137 | K75: 30.2x15.6x 11.2 | L75: 2.74 | M75: 0.0052416 | N75: $1.05 | P75: 0 | Q75: 0 | R75: 0.00 | S75: 0
B76: DIDACTIC GAMES | C76: LCD-0011-05 | D76: 0630902093956 | E76: Learning board - Colors Frozen Tabla de aprendizaje - Colores Frozen | F76: 5.51 x 11.41 in | G76: 14 x 29 cm | H76: 20 | I76: 0 | J76: 0.137 | K76: 30.2x15.6x 11.2 | L76: 2.74 | M76: 0.0052416 | N76: $1.05 | P76: 0 | Q76: 0 | R76: 0.00 | S76: 0
B77: DIDACTIC GAMES | C77: LCD-0011-08 | D77: 0630902097589 | E77: Learning board - Colors Stitch Tabla de aprendizaje - Colores Stitch | F77: 5.51 x 11.41 in | G77: 14 x 29 cm | H77: 20 | I77: 0 | J77: 0.137 | K77: 30.2x15.6x 11.2 | L77: 2.74 | M77: 0.0052416 | N77: $1.05 | P77: 0 | Q77: 0 | R77: 0.00 | S77: 0
B78: DIDACTIC GAMES | C78: LCD-0012-01 | D78: 0630902093963 | E78: Learning board - Numbers Mickey Tabla de aprendizaje - Números Mickey | F78: 5.51 x 11.41 in | G78: 14 x 29 cm | H78: 20 | I78: 0 | J78: 0.137 | K78: 30.2x15.6x 11.2 | L78: 2.74 | M78: =0.3*0.156*0.112 -> 0.0052416 | N78: $1.05 | P78: 0 | Q78: 0 | R78: 0.00 | S78: 0
B79: DIDACTIC GAMES | C79: LCD-0012-02 | D79: 0630902093970 | E79: Learning board - Numbers Minnie Tabla de aprendizaje - Números Minnie | F79: 5.51 x 11.41 in | G79: 14 x 29 cm | H79: 20 | I79: 0 | J79: 0.137 | K79: 30.2x15.6x 11.2 | L79: 2.74 | M79: 0.0052416 | N79: $1.05 | P79: =O79*H79 -> 0 | Q79: =O79*L79 -> 0 | R79: =O79*M79 -> 0.00 | S79: =N79*P79 -> 0
B80: DIDACTIC GAMES | C80: LCD-0012-04 | D80: 0630902093994 | E80: Learning board - Numbers Spidey Tabla de aprendizaje - Números Spidey | F80: 5.51 x 11.41 in | G80: 14 x 29 cm | H80: 20 | I80: 0 | J80: 0.137 | K80: 30.2x15.6x 11.2 | L80: 2.74 | M80: 0.0052416 | N80: $1.05 | P80: 0 | Q80: 0 | R80: 0.00 | S80: 0
B81: DIDACTIC GAMES | C81: LCD-0012-06 | D81: 0630902097596 | E81: Learning board - Numbers Miles Tabla de aprendizaje - Números Miles | F81: 5.51 x 11.41 in | G81: 14 x 29 cm | H81: 20 | I81: 0 | J81: 0.137 | K81: 30.2x15.6x 11.2 | L81: 2.74 | M81: 0.0052416 | N81: $1.05 | P81: 0 | Q81: 0 | R81: 0.00 | S81: 0
B82: DIDACTIC GAMES | C82: LCD-0012-05 | D82: 0630902094007 | E82: Learning board - Numbers Frozen Tabla de aprendizaje - Números Frozen | F82: 5.51 x 11.41 in | G82: 14 x 29 cm | H82: 20 | I82: 0 | J82: 0.137 | K82: 30.2x15.6x 11.2 | L82: 2.74 | M82: 0.0052416 | N82: $1.05 | P82: 0 | Q82: 0 | R82: 0.00 | S82: 0
B83: DIDACTIC GAMES | C83: LCD-0012-07 | D83: 0630902097602 | E83: Learning board - Numbers Princess Tabla de aprendizaje - Números Princesas | F83: 5.51 x 11.41 in | G83: 14 x 29 cm | H83: 20 | I83: 0 | J83: 0.137 | K83: 30.2x15.6x 11.2 | L83: 2.74 | M83: 0.0052416 | N83: $1.05 | P83: 0 | Q83: 0 | R83: 0.00 | S83: 0
B84: DIDACTIC GAMES | C84: LCD-0012-08 | D84: 0630902097619 | E84: Learning board - Numbers Stitch Tabla de aprendizaje - Números Stitch | F84: 5.51 x 11.41 in | G84: 14 x 29 cm | H84: 20 | I84: 0 | J84: 0.137 | K84: 30.2x15.6x 11.2 | L84: 2.74 | M84: 0.0052416 | N84: $1.05 | P84: 0 | Q84: 0 | R84: 0.00 | S84: 0
B85: DIDACTIC GAMES | C85: LCD-0013-01 | D85: 0630902094311 | E85: Sheet alphabet - Mickey Abecedario en lámina - Mickey | F85: 5.51 x 11.41 in | G85: 14 x 29 cm | H85: 20 | I85: 0 | J85: 0.137 | K85: 30.2x15.6x 11.2 | L85: 2.74 | M85: 0.0052416 | N85: $1.05 | P85: 0 | Q85: 0 | R85: 0.00 | S85: 0
B86: DIDACTIC GAMES | C86: LCD-0013-02 | D86: 0630902094328 | E86: Sheet alphabet -MInnie Abecedario en lámina - Minnie | F86: 5.51 x 11.41 in | G86: 14 x 29 cm | H86: 20 | I86: 0 | J86: 0.137 | K86: 30.2x15.6x 11.2 | L86: 2.74 | M86: 0.0052416 | N86: $1.05 | P86: 0 | Q86: 0 | R86: 0.00 | S86: 0
B87: DIDACTIC GAMES | C87: LCD-0013-06 | D87: 0630902097626 | E87: Sheet alphabet - SPidey Abecedario en lámina - Spidey | F87: 5.51 x 11.41 in | G87: 14 x 29 cm | H87: 20 | I87: 0 | J87: 0.137 | K87: 30.2x15.6x 11.2 | L87: 2.74 | M87: 0.0052416 | N87: $1.05 | P87: 0 | Q87: 0 | R87: 0.00 | S87: 0
B88: DIDACTIC GAMES | C88: LCD-0013-07 | D88: 0630902097633 | E88: Sheet alphabet - Miles Abecedario en lámina - Miles | F88: 5.51 x 11.41 in | G88: 14 x 29 cm | H88: 20 | I88: 0 | J88: 0.137 | K88: 30.2x15.6x 11.2 | L88: 2.74 | M88: 0.0052416 | N88: $1.05 | P88: 0 | Q88: 0 | R88: 0.00 | S88: 0
B89: DIDACTIC GAMES | C89: LCD-0013-03 | D89: 0630902094335 | E89: Sheet alphabet - Frozen Abecedario en lámina - Frozen | F89: 5.51 x 11.41 in | G89: 14 x 29 cm | H89: 20 | I89: 0 | J89: 0.137 | K89: 30.2x15.6x 11.2 | L89: 2.74 | M89: 0.0052416 | N89: $1.05 | P89: 0 | Q89: 0 | R89: 0.00 | S89: 0
B90: DIDACTIC GAMES | C90: LCD-0013-05 | D90: 0630902094359 | E90: Sheet alphabet -Princess Abecedario en lámina - Princesas | F90: 5.51 x 11.41 in | G90: 14 x 29 cm | H90: 20 | I90: 0 | J90: 0.137 | K90: 30.2x15.6x 11.2 | L90: =J90*H90 -> 2.74 | M90: 0.0052416 | N90: $1.05 | P90: 0 | Q90: 0 | R90: 0.00 | S90: 0
B91: DIDACTIC GAMES | C91: LCD-0013-08 | D91: 0630902097640 | E91: Sheet alphabet -Stitch Abecedario en lámina - Stitch | F91: 5.51 x 11.41 in | G91: 14 x 29 cm | H91: 20 | I91: 0 | J91: 0.137 | K91: 30.2x15.6x 11.2 | L91: 2.74 | M91: 0.0052416 | N91: $1.05 | P91: 0 | Q91: 0 | R91: 0.00 | S91: 0
B92: DIDACTIC GAMES | C92: FCD-0001-01 | D92: 0630902092799 | E92: Flash cards - geometric figures Mickey Tarjetas didácticas.- Fiiguras geométricas Mickey | F92: 5.90 x 9.05 x 1.57 in | G92: 15 x 23 x 4 cm | H92: 48 | I92: 8 | J92: 0.142 | K92: 60x50x25 | L92: 6.816 | M92: =0.6*0.5*0.25 -> 0.075 | N92: $1.60 | P92: 0 | Q92: 0 | R92: 0.00 | S92: 0
B93: DIDACTIC GAMES | C93: FCD-0001-02 | D93: 0630902092805 | E93: Flash cards of Shapes - figures Minnie Tarjetas didácticas.- Fiiguras geométricas Minnie | F93: 5.90 x 9.05 x 1.57 in | G93: 15 x 23 x 4 cm | H93: 48 | I93: 8 | J93: 0.142 | K93: 60x50x25 | L93: =J93*H93 -> 6.816 | M93: 0.075 | N93: $1.60 | P93: 0 | Q93: 0 | R93: 0.00 | S93: 0
B94: DIDACTIC GAMES | C94: FCD-0001-08 | D94: 0630902097657 | E94: Flash cards of Shapes - figures Spidey Tarjetas didácticas.- Fiiguras geométricas Spidey | F94: 5.90 x 9.05 x 1.57 in | G94: 15 x 23 x 4 cm | H94: 48 | I94: 8 | J94: 0.142 | K94: 60x50x25 | L94: 6.816 | M94: 0.075 | N94: $1.60 | P94: 0 | Q94: 0 | R94: 0.00 | S94: 0
B95: DIDACTIC GAMES | C95: FCD-0001-09 | D95: 0630902097664 | E95: Flash cards of Shapes - figures Miles Tarjetas didácticas.- Fiiguras geométricas Miles | F95: 5.90 x 9.05 x 1.57 in | G95: 15 x 23 x 4 cm | H95: 48 | I95: 8 | J95: 0.142 | K95: 60x50x25 | L95: 6.816 | M95: 0.075 | N95: $1.60 | P95: 0 | Q95: 0 | R95: 0.00 | S95: 0
B96: DIDACTIC GAMES | C96: FCD-0001-03 | D96: 0630902092812 | E96: Flash cards of Shapes - figures Frozen Tarjetas didácticas.- Fiiguras geométricas Frozen | F96: 5.90 x 9.05 x 1.57 in | G96: 15 x 23 x 4 cm | H96: 48 | I96: 8 | J96: 0.142 | K96: 60x50x25 | L96: 6.816 | M96: 0.075 | N96: $1.60 | P96: 0 | Q96: 0 | R96: 0.00 | S96: 0
B97: DIDACTIC GAMES | C97: FCD-0001-05 | D97: 0630902092836 | E97: Flash cards of Shapes - figures Princess Tarjetas didácticas.- Fiiguras geométricas Princesas | F97: 5.90 x 9.05 x 1.57 in | G97: 15 x 23 x 4 cm | H97: 48 | I97: 8 | J97: 0.142 | K97: 60x50x25 | L97: 6.816 | M97: 0.075 | N97: $1.60 | P97: 0 | Q97: 0 | R97: 0.00 | S97: 0
B98: DIDACTIC GAMES | C98: FCD-0001-10 | D98: 0630902097671 | E98: Flash cards of Shapes - figures Stitch Tarjetas didácticas.- Fiiguras geométricas Stitch | F98: 5.90 x 9.05 x 1.57 in | G98: 15 x 23 x 4 cm | H98: 48 | I98: 8 | J98: 0.142 | K98: 60x50x25 | L98: 6.816 | M98: 0.075 | N98: $1.60 | P98: 0 | Q98: 0 | R98: 0.00 | S98: 0
B99: DIDACTIC GAMES | C99: FCD-0002-01 | D99: 0630902093048 | E99: Flash cards - Numbers Mickey Tarjetas didácticas.- Números Mickey | F99: 5.90 x 9.05 x 1.57 in | G99: 15 x 23 x 4 cm | H99: 48 | I99: 8 | J99: 0.142 | K99: 60x50x25 | L99: 6.816 | M99: 0.075 | N99: $1.60 | P99: 0 | Q99: 0 | R99: 0.00 | S99: 0
B100: DIDACTIC GAMES | C100: FCD-0002-02 | D100: 0630902093055 | E100: Flash cards - Numbers Minnie Tarjetas didácticas.- Números Minnie | F100: 5.90 x 9.05 x 1.57 in | G100: 15 x 23 x 4 cm | H100: 48 | I100: 8 | J100: 0.142 | K100: 60x50x25 | L100: =J100*H100 -> 6.816 | M100: 0.075 | N100: $1.60 | P100: 0 | Q100: 0 | R100: 0.00 | S100: 0
B101: DIDACTIC GAMES | C101: FCD-0002-06 | D101: 0630902097688 | E101: Flash cards - Numbers Spidey Tarjetas didácticas.- Números Spidey | F101: 5.90 x 9.05 x 1.57 in | G101: 15 x 23 x 4 cm | H101: 48 | I101: 8 | J101: 0.142 | K101: 60x50x25 | L101: 6.816 | M101: 0.075 | N101: $1.60 | P101: 0 | Q101: 0 | R101: 0.00 | S101: 0
B102: DIDACTIC GAMES | C102: FCD-0002-07 | D102: 0630902097695 | E102: Flash cards - Numbers Miles Tarjetas didácticas.- Números Miles | F102: 5.90 x 9.05 x 1.57 in | G102: 15 x 23 x 4 cm | H102: 48 | I102: 8 | J102: 0.142 | K102: 60x50x25 | L102: 6.816 | M102: 0.075 | N102: $1.60 | P102: 0 | Q102: 0 | R102: 0.00 | S102: 0
B103: DIDACTIC GAMES | C103: FCD-0002-03 | D103: 0630902093062 | E103: Flash cards - Numbers Frozen Tarjetas didácticas.- Números Frozen | F103: 5.90 x 9.05 x 1.57 in | G103: 15 x 23 x 4 cm | H103: 48 | I103: 8 | J103: 0.142 | K103: 60x50x25 | L103: 6.816 | M103: 0.075 | N103: $1.60 | P103: 0 | Q103: 0 | R103: 0.00 | S103: 0
B104: DIDACTIC GAMES | C104: FCD-0002-05 | D104: 0630902093086 | E104: Flash cards - Numbers Princess Tarjetas didácticas.- Números Princesas | F104: 5.90 x 9.05 x 1.57 in | G104: 15 x 23 x 4 cm | H104: 48 | I104: 8 | J104: 0.142 | K104: 60x50x25 | L104: 6.816 | M104: 0.075 | N104: $1.60 | P104: 0 | Q104: 0 | R104: 0.00 | S104: 0
B105: DIDACTIC GAMES | C105: FCD-0002-08 | D105: 0630902097701 | E105: Flash cards - Numbers Stitch Tarjetas didácticas.- Números Stitch | F105: 5.90 x 9.05 x 1.57 in | G105: 15 x 23 x 4 cm | H105: 48 | I105: 8 | J105: 0.142 | K105: 60x50x25 | L105: 6.816 | M105: 0.075 | N105: $1.60 | P105: 0 | Q105: 0 | R105: 0.00 | S105: 0
B106: DIDACTIC GAMES | C106: FCD-0003-01 | D106: 0630902093093 | E106: Flash cards - Colors Mickey Tarjetas didácticas.- Colores Mickey | F106: 5.90 x 9.05 x 1.57 in | G106: 15 x 23 x 4 cm | H106: 48 | I106: 8 | J106: 0.142 | K106: 60x50x25 | L106: 6.816 | M106: 0.075 | N106: $1.60 | P106: 0 | Q106: 0 | R106: 0.00 | S106: 0
B107: DIDACTIC GAMES | C107: FCD-0003-02 | D107: 0630902093109 | E107: Flash cards - Colors Minnie Tarjetas didácticas.- Colores Minnie | F107: 5.90 x 9.05 x 1.57 in | G107: 15 x 23 x 4 cm | H107: 48 | I107: 8 | J107: 0.142 | K107: 60x50x25 | L107: 6.816 | M107: 0.075 | N107: $1.60 | P107: 0 | Q107: 0 | R107: 0.00 | S107: 0
B108: DIDACTIC GAMES | C108: FCD-0003-06 | D108: 0630902097718 | E108: Flash cards - Colors Spidey Tarjetas didácticas.- Colores Spidey | F108: 5.90 x 9.05 x 1.57 in | G108: 15 x 23 x 4 cm | H108: 48 | I108: 8 | J108: 0.142 | K108: 60x50x25 | L108: 6.816 | M108: 0.075 | N108: $1.60 | P108: 0 | Q108: 0 | R108: 0.00 | S108: 0
B109: DIDACTIC GAMES | C109: FCD-0003-07 | D109: 630902097725 | E109: Flash cards - Colors Miles Tarjetas didácticas.- Colores Miles | F109: 5.90 x 9.05 x 1.57 in | G109: 15 x 23 x 4 cm | H109: 48 | I109: 8 | J109: 0.142 | K109: 60x50x25 | L109: 6.816 | M109: 0.075 | N109: $1.60 | P109: 0 | Q109: 0 | R109: 0.00 | S109: 0
B110: DIDACTIC GAMES | C110: FCD-0003-03 | D110: 0630902093116 | E110: Flash cards - Colors Frozen Tarjetas didácticas.- Colores Frozen | F110: 5.90 x 9.05 x 1.57 in | G110: 15 x 23 x 4 cm | H110: 48 | I110: 8 | J110: 0.142 | K110: 60x50x25 | L110: 6.816 | M110: 0.075 | N110: $1.60 | P110: 0 | Q110: 0 | R110: 0.00 | S110: 0
B111: DIDACTIC GAMES | C111: FCD-0003-05 | D111: 0630902093130 | E111: Flash cards - Colors Princess Tarjetas didácticas.- Colores Princesas | F111: 5.90 x 9.05 x 1.57 in | G111: 15 x 23 x 4 cm | H111: 48 | I111: 8 | J111: 0.142 | K111: 60x50x25 | L111: 6.816 | M111: 0.075 | N111: $1.60 | P111: 0 | Q111: 0 | R111: 0.00 | S111: 0
B112: DIDACTIC GAMES | C112: FCD-0003-08 | D112: 0630902097732 | E112: Flash cards - Colors Stitch Tarjetas didácticas.- Colores Stitch | F112: 5.90 x 9.05 x 1.57 in | G112: 15 x 23 x 4 cm | H112: 48 | I112: 8 | J112: 0.142 | K112: 60x50x25 | L112: 6.816 | M112: 0.075 | N112: $1.60 | P112: 0 | Q112: 0 | R112: 0.00 | S112: 0
B113: DIDACTIC GAMES | C113: FCD-0004-01 | D113: 0630902093710 | E113: Flash cards - subtractions Mickey Tarjetas didácticas.- Restas Mickey | F113: 5.90 x 9.05 x 1.57 in | G113: 15 x 23 x 4 cm | H113: 48 | I113: 8 | J113: 0.142 | K113: 60x50x25 | L113: 6.816 | M113: 0.075 | N113: $1.60 | P113: 0 | Q113: 0 | R113: 0.00 | S113: 0
B114: DIDACTIC GAMES | C114: FCD-0004-02 | D114: 0630902093727 | E114: Flash cards - subtractions Minnie Tarjetas didácticas.- Restas Minnie | F114: 5.90 x 9.05 x 1.57 in | G114: 15 x 23 x 4 cm | H114: 48 | I114: 8 | J114: 0.142 | K114: 60x50x25 | L114: 6.816 | M114: 0.075 | N114: $1.60 | P114: 0 | Q114: 0 | R114: 0.00 | S114: 0
B115: DIDACTIC GAMES | C115: FCD-0004-06 | D115: 0630902097749 | E115: Flash cards - subtractions Spidey Tarjetas didácticas.- Restas Spidey | F115: 5.90 x 9.05 x 1.57 in | G115: 15 x 23 x 4 cm | H115: 48 | I115: 8 | J115: 0.142 | K115: 60x50x25 | L115: 6.816 | M115: 0.075 | N115: $1.60 | P115: 0 | Q115: 0 | R115: 0.00 | S115: 0
B116: DIDACTIC GAMES | C116: FCD-0004-07 | D116: 0630902097756 | E116: Flash cards - subtractions Miles Tarjetas didácticas.- Restas Miles | F116: 5.90 x 9.05 x 1.57 in | G116: 15 x 23 x 4 cm | H116: 48 | I116: 8 | J116: 0.142 | K116: 60x50x25 | L116: 6.816 | M116: 0.075 | N116: $1.60 | P116: 0 | Q116: 0 | R116: 0.00 | S116: 0
B117: DIDACTIC GAMES | C117: FCD-0004-03 | D117: 0630902093734 | E117: Flash cards - subtractions Frozen Tarjetas didácticas.- Restas Frozen | F117: 5.90 x 9.05 x 1.57 in | G117: 15 x 23 x 4 cm | H117: 48 | I117: 8 | J117: 0.142 | K117: 60x50x25 | L117: 6.816 | M117: 0.075 | N117: $1.60 | P117: 0 | Q117: 0 | R117: 0.00 | S117: 0
B118: DIDACTIC GAMES | C118: FCD-0004-05 | D118: 0630902093758 | E118: Flash cards - subtractions Princess Tarjetas didácticas.- Restas Pricnesas | F118: 5.90 x 9.05 x 1.57 in | G118: 15 x 23 x 4 cm | H118: 48 | I118: 8 | J118: 0.142 | K118: 60x50x25 | L118: 6.816 | M118: 0.075 | N118: $1.60 | P118: 0 | Q118: 0 | R118: 0.00 | S118: 0
B119: DIDACTIC GAMES | C119: FCD-0004-08 | D119: 0630902097763 | E119: Flash cards - subtractions Stitch Tarjetas didácticas.- Restas Stitch | F119: 5.90 x 9.05 x 1.57 in | G119: 15 x 23 x 4 cm | H119: 48 | I119: 8 | J119: 0.142 | K119: 60x50x25 | L119: 6.816 | M119: 0.075 | N119: $1.60 | P119: 0 | Q119: 0 | R119: 0.00 | S119: 0
B120: DIDACTIC GAMES | C120: FCD-0005-01 | D120: 0630902093765 | E120: Flash cards - Addition Mickey Tarjetas didácticas.- Sumas Mickey | F120: 5.90 x 9.05 x 1.57 in | G120: 15 x 23 x 4 cm | H120: 48 | I120: 8 | J120: 0.142 | K120: 60x50x25 | L120: 6.816 | M120: 0.075 | N120: $1.60 | P120: 0 | Q120: 0 | R120: 0.00 | S120: 0
B121: DIDACTIC GAMES | C121: FCD-0005-02 | D121: 0630902093772 | E121: Flash cards - Adition Minnie Tarjetas didácticas.- Sumas Minnie | F121: 5.90 x 9.05 x 1.57 in | G121: 15 x 23 x 4 cm | H121: 48 | I121: 8 | J121: 0.142 | K121: 60x50x25 | L121: 6.816 | M121: 0.075 | N121: $1.60 | P121: 0 | Q121: 0 | R121: 0.00 | S121: 0
B122: DIDACTIC GAMES | C122: FCD-0005-06 | D122: 0630902097770 | E122: Flash cards - Adition Spidey Tarjetas didácticas.- Sumas Spidey | F122: 5.90 x 9.05 x 1.57 in | G122: 15 x 23 x 4 cm | H122: 48 | I122: 8 | J122: 0.142 | K122: 60x50x25 | L122: 6.816 | M122: 0.075 | N122: $1.60 | P122: 0 | Q122: 0 | R122: 0.00 | S122: 0
B123: DIDACTIC GAMES | C123: FCD-0005-07 | D123: 0630902097787 | E123: Flash cards - Adition Miles Tarjetas didácticas.- Sumas Miles | F123: 5.90 x 9.05 x 1.57 in | G123: 15 x 23 x 4 cm | H123: 48 | I123: 8 | J123: 0.142 | K123: 60x50x25 | L123: 6.816 | M123: 0.075 | N123: $1.60 | P123: 0 | Q123: 0 | R123: 0.00 | S123: 0
B124: DIDACTIC GAMES | C124: FCD-0005-03 | D124: 0630902093789 | E124: Flash cards - Adition Frozen Tarjetas didácticas.- Sumas Frozen | F124: 5.90 x 9.05 x 1.57 in | G124: 15 x 23 x 4 cm | H124: 48 | I124: 8 | J124: 0.142 | K124: 60x50x25 | L124: 6.816 | M124: 0.075 | N124: $1.60 | P124: 0 | Q124: 0 | R124: 0.00 | S124: 0
B125: DIDACTIC GAMES | C125: FCD-0005-05 | D125: 0630902093802 | E125: Flash cards - Adition Princess Tarjetas didácticas.- Sumas Princesas | F125: 5.90 x 9.05 x 1.57 in | G125: 15 x 23 x 4 cm | H125: 48 | I125: 8 | J125: 0.142 | K125: 60x50x25 | L125: 6.816 | M125: 0.075 | N125: $1.60 | P125: 0 | Q125: 0 | R125: 0.00 | S125: 0
B126: DIDACTIC GAMES | C126: FCD-0005-08 | D126: 0630902097794 | E126: Flash cards - Adition Stitch Tarjetas didácticas.- Sumas Stitch | F126: 5.90 x 9.05 x 1.57 in | G126: 15 x 23 x 4 cm | H126: 48 | I126: 8 | J126: 0.142 | K126: 60x50x25 | L126: 6.816 | M126: 0.075 | N126: $1.60 | P126: 0 | Q126: 0 | R126: 0.00 | S126: 0
B127: DIDACTIC GAMES | C127: LCD-0014-01 | D127: 0630902093321 | E127: Shapes puzzle - Mickey Rompecabezas de formas - Mickey | F127: 5.51 x 11.41 in | G127: 14 x 29 cm | H127: 24 | I127: 24 | J127: 0.147 | K127: 33x30x20 | L127: =J127*H127 -> 3.528 | M127: =0.33*0.3*0.2 -> 0.0198 | N127: $1.49 | P127: 0 | Q127: 0 | R127: 0.00 | S127: 0
B128: DIDACTIC GAMES | C128: LCD-0014-02 | D128: 0630902093338 | E128: Shapes puzzle - Minnie Rompecabezas de formas - Minnie | F128: 5.51 x 11.41 in | G128: 14 x 29 cm | H128: 24 | I128: 24 | J128: 0.147 | K128: 33x30x20 | L128: =J128*H128 -> 3.528 | M128: 0.0198 | N128: $1.49 | P128: 0 | Q128: 0 | R128: 0.00 | S128: 0
B129: DIDACTIC GAMES | C129: LCD-0014-09 | D129: 06309020933902 | E129: Shapes puzzle -Spidey Rompecabezas de formas - Spidey | F129: 5.51 x 11.41 in | G129: 14 x 29 cm | H129: 24 | I129: 24 | J129: 0.147 | K129: 33x30x20 | L129: 3.528 | M129: 0.0198 | N129: $1.49 | P129: 0 | Q129: 0 | R129: 0.00 | S129: 0
B130: DIDACTIC GAMES | C130: LCD-0014-10 | D130: 0630902097800 | E130: Shapes puzzle - Miles Rompecabezas de formas - Miles | F130: 5.51 x 11.41 in | G130: 14 x 29 cm | H130: 24 | I130: 24 | J130: 0.147 | K130: 33x30x20 | L130: =J130*H130 -> 3.528 | M130: 0.0198 | N130: $1.49 | P130: 0 | Q130: 0 | R130: 0.00 | S130: 0
B131: DIDACTIC GAMES | C131: LCD-0014-03 | D131: 0630902093345 | E131: Shapes puzzle -Frozen Rompecabezas de formas - Frozen | F131: 5.51 x 11.41 in | G131: 14 x 29 cm | H131: 24 | I131: 24 | J131: 0.147 | K131: 33x30x20 | L131: 3.528 | M131: 0.0198 | N131: $1.49 | P131: 0 | Q131: 0 | R131: 0.00 | S131: 0
B132: DIDACTIC GAMES | C132: LCD-0014-04 | D132: 0630902093352 | E132: Shapes puzzle - Princess Rompecabezas de formas - Princesas | F132: 5.51 x 11.41 in | G132: 14 x 29 cm | H132: 24 | I132: 24 | J132: 0.147 | K132: 33x30x20 | L132: 3.528 | M132: 0.0198 | N132: $1.49 | P132: 0 | Q132: 0 | R132: 0.00 | S132: 0
B133: DIDACTIC GAMES | C133: LCD-0014-11 | D133: 0630902097817 | E133: Shapes puzzle - Stitch Rompecabezas de formas - Stitch | F133: 5.51 x 11.41 in | G133: 14 x 29 cm | H133: 24 | I133: 24 | J133: 0.147 | K133: 33x30x20 | L133: =J133*H133 -> 3.528 | M133: 0.0198 | N133: $1.49 | P133: 0 | Q133: 0 | R133: 0.00 | S133: 0
B134: DIDACTIC GAMES | C134: LCD-0015-01 | D134: 0630902093468 | E134: Flat Learning Clock - MIckey Reloj de aprendizaje plano - Mickey | F134: 8.66 in | G134: 22 cm | H134: 40 | I134: 10 | J134: 0.122 | K134: 33x30x20 | L134: =J134*H134 -> 4.880 | M134: 0.0198 | N134: $1.54 | P134: 0 | Q134: 0 | R134: 0.00 | S134: 0
B135: DIDACTIC GAMES | C135: LCD-0015-02 | D135: 630902093475 | E135: Flat Learning Clock - Minnie Reloj de aprendizaje plano - Minnie | F135: 8.66 in | G135: 22 cm | H135: 40 | I135: 10 | J135: 0.122 | K135: 33x30x20 | L135: =J135*H135 -> 4.880 | M135: 0.0198 | N135: $1.54 | P135: 0 | Q135: 0 | R135: 0.00 | S135: 0
B136: DIDACTIC GAMES | C136: LCD-0015-08 | D136: 0630902095196 | E136: Flat Learning Clock - Spidey Reloj de aprendizaje plano - Spidey | F136: 8.66 in | G136: 22 cm | H136: 40 | I136: 10 | J136: 0.122 | K136: 33x30x20 | L136: 4.880 | M136: 0.0198 | N136: $1.54 | P136: 0 | Q136: 0 | R136: 0.00 | S136: 0
B137: DIDACTIC GAMES | C137: LCD-0015-09 | D137: 0630902097824 | E137: Flat Learning Clock - Miles Reloj de aprendizaje plano - Miles | F137: 8.66 in | G137: 22 cm | H137: 40 | I137: 10 | J137: 0.122 | K137: 33x30x20 | L137: 4.880 | M137: 0.0198 | N137: $1.54 | P137: 0 | Q137: 0 | R137: 0.00 | S137: 0
B138: DIDACTIC GAMES | C138: LCD-0015-03 | D138: 0630902093482 | E138: Flat Learning Clock - Frozen Reloj de aprendizaje plano - Frozen | F138: 8.66 in | G138: 22 cm | H138: 40 | I138: 10 | J138: 0.122 | K138: 33x30x20 | L138: 4.880 | M138: 0.0198 | N138: $1.54 | P138: 0 | Q138: 0 | R138: 0.00 | S138: 0
B139: DIDACTIC GAMES | C139: LCD-0015-04 | D139: 0630902093499 | E139: Flat Learning Clock - Princesas Reloj de aprendizaje plano - Princesas | F139: 8.66 in | G139: 22 cm | H139: 40 | I139: 10 | J139: 0.122 | K139: 33x30x20 | L139: =J139*H139 -> 4.880 | M139: 0.0198 | N139: $1.54 | P139: 0 | Q139: 0 | R139: 0.00 | S139: 0
B140: DIDACTIC GAMES | C140: LCD-0015-10 | D140: 0630902097831 | E140: Flat Learning Clock - Stitch Reloj de aprendizaje plano - Stitch | F140: 8.66 in | G140: 22 cm | H140: 40 | I140: 10 | J140: 0.122 | K140: 33x30x20 | L140: 4.880 | M140: 0.0198 | N140: $1.54 | P140: 0 | Q140: 0 | R140: 0.00 | S140: 0
B141: DIDACTIC GAMES | C141: NCD-0001-01 | D141: 0684659938145 | E141: 3D puzzle -With box - Mickey Rompecabezas 3d - con caja -Mickey | F141: 5.51 x 11.41 in | G141: 14 x 29 cm | H141: 24 | I141: 12 | J141: 0.162 | K141: 33x30x20 | L141: 3.888 | M141: 0.0198 | N141: $1.93 | P141: 0 | Q141: 0 | R141: 0.00 | S141: 0
B142: DIDACTIC GAMES | C142: NCD-0001-02 | D142: 0630902089676 | E142: 3D puzzle -With box - Minie Rompecabezas 3d - con caja -Minnie | F142: 5.51 x 11.41 in | G142: 14 x 29 cm | H142: 24 | I142: 12 | J142: 0.162 | K142: 33x30x20 | L142: =J142*H142 -> 3.888 | M142: 0.0198 | N142: $1.93 | P142: 0 | Q142: 0 | R142: 0.00 | S142: 0
B143: DIDACTIC GAMES | C143: NCD-0001-02 | D143: 0630902097848 | E143: 3D puzzle -With box - Spidey Rompecabezas 3d - con caja -Spidey | F143: 5.51 x 11.41 in | G143: 14 x 29 cm | H143: 24 | I143: 12 | J143: 0.162 | K143: 33x30x20 | L143: 3.888 | M143: 0.0198 | N143: $1.93 | P143: =O143*H143 -> 0 | Q143: =O143*L143 -> 0 | R143: =O143*M143 -> 0.00 | S143: =N143*P143 -> 0
B144: DIDACTIC GAMES | C144: NCD-0001-08 | D144: 0630902097848 | E144: 3D puzzle -With box - Miles Rompecabezas 3d - con caja -Miles | F144: 5.51 x 11.41 in | G144: 14 x 29 cm | H144: 24 | I144: 12 | J144: 0.162 | K144: 33x30x20 | L144: =J144*H144 -> 3.888 | M144: 0.0198 | N144: $1.93 | P144: 0 | Q144: 0 | R144: 0.00 | S144: 0
B145: DIDACTIC GAMES | C145: NCD-0001-03 | D145: 0684659938138 | E145: 3D puzzle -With box - Frozen Rompecabezas 3d - con caja -Frozen | F145: 5.51 x 11.41 in | G145: 14 x 29 cm | H145: 24 | I145: 12 | J145: 0.162 | K145: 33x30x20 | L145: =J145*H145 -> 3.888 | M145: 0.0198 | N145: $1.93 | P145: 0 | Q145: 0 | R145: 0.00 | S145: 0
B146: DIDACTIC GAMES | C146: NCD-0001-09 | D146: 0630902097855 | E146: 3D puzzle -With box -Princess Rompecabezas 3d - con caja Princesas | F146: 5.51 x 11.41 in | G146: 14 x 29 cm | H146: 24 | I146: 12 | J146: 0.162 | K146: 33x30x20 | L146: 3.888 | M146: 0.0198 | N146: $1.93 | P146: 0 | Q146: 0 | R146: 0.00 | S146: 0
B147: DIDACTIC GAMES | C147: NCD-0001-10 | D147: 0630902097862 | E147: 3D puzzle -With box -Stitch Rompecabezas 3d - con caja Stitch | F147: 5.51 x 11.41 in | G147: 14 x 29 cm | H147: 24 | I147: 12 | J147: 0.162 | K147: 33x30x20 | L147: =J147*H147 -> 3.888 | M147: 0.0198 | N147: $1.93 | P147: 0 | Q147: 0 | R147: 0.00 | S147: 0
B148: DIDACTIC GAMES | C148: NCD-0002-01 | D148: 0684659942258 | E148: Didactic numbers 1-10 - MIckey Números didácticos 1-10 - MIckey | F148: 11.41 x 7.48 in | G148: 29 x 19 cm | H148: 48 | I148: 12 | J148: 0.214 | K148: 33 x 30 x 23.5 | L148: 10.272 | M148: =0.33*0.3*0.235 -> 0.023 | N148: $2.04 | P148: 0 | Q148: 0 | R148: 0.00 | S148: 0
B149: DIDACTIC GAMES | C149: NCD-0002-02 | D149: 0684659942265 | E149: Didactic numbers 1-10 - Minnie Números didácticos 1-10 - Minnie | F149: 11.41 x 7.48 in | G149: 29 x 19 cm | H149: 48 | I149: 12 | J149: 0.214 | K149: 33 x 30 x 23.5 | L149: =J149*H149 -> 10.272 | M149: 0.023 | N149: $2.04 | P149: 0 | Q149: 0 | R149: 0.00 | S149: 0
B150: DIDACTIC GAMES | C150: NCD-0002-03 | D150: 0630902095240 | E150: Didactic numbers - Spidey Números didácticos - Spidey | F150: 11.41 x 7.48 in | G150: 29 x 19 cm | H150: 48 | I150: 12 | J150: 0.214 | K150: 33 x 30 x 23.5 | L150: 10.272 | M150: 0.023 | N150: $2.04 | P150: 0 | Q150: 0 | R150: 0.00 | S150: 0
B151: DIDACTIC GAMES | C151: NCD-0002-04 | D151: 0630902097879 | E151: Didactic numbers - Miles Números didácticos - Miles | F151: 11.41 x 7.48 in | G151: 29 x 19 cm | H151: 48 | I151: 12 | J151: 0.214 | K151: 33 x 30 x 23.5 | L151: 10.272 | M151: 0.023 | N151: $2.04 | P151: 0 | Q151: 0 | R151: 0.00 | S151: 0
B152: DIDACTIC GAMES | C152: NCD-0002-05 | D152: 0630902097886 | E152: Didactic numbers - Princess Números didácticos - Princess | F152: 11.41 x 7.48 in | G152: 29 x 19 cm | H152: 48 | I152: 12 | J152: 0.214 | K152: 33 x 30 x 23.5 | L152: 10.272 | M152: 0.023 | N152: $2.04 | P152: 0 | Q152: 0 | R152: 0.00 | S152: 0
B153: DIDACTIC GAMES | C153: NCD-0002-06 | D153: 0630902097893 | E153: Didactic numbers - Frozen Números didácticos - Frozen | F153: 11.41 x 7.48 in | G153: 30 x 19 cm | H153: 48 | I153: 12 | J153: 0.214 | K153: 33 x 30 x 23.5 | L153: 10.272 | M153: 0.023 | N153: $2.04 | P153: 0 | Q153: 0 | R153: 0.00 | S153: 0
B154: DIDACTIC GAMES | C154: NCD-0002-07 | D154: 0630902097909 | E154: Didactic numbers - Stitch Números didácticos - Stitch | F154: 11.41 x 7.48 in | G154: 30 x 19 cm | H154: 48 | I154: 12 | J154: 0.214 | K154: 33 x 30 x 23.5 | L154: 10.272 | M154: 0.023 | N154: $2.04 | P154: 0 | Q154: 0 | R154: 0.00 | S154: 0
B155: DIDACTIC GAMES | C155: NCD-0003-01 | D155: 0630902090245 | E155: Alphabet didactic pieces - Mickey Abecedario piezas didacticas - Mickey | F155: 11.41 x 7.48 in | G155: 29 x 19 cm | H155: 48 | I155: 12 | J155: 0.214 | K155: 33 x 30 x 23.5 | L155: 10.272 | M155: 0.023 | N155: $2.04 | P155: 0 | Q155: 0 | R155: 0.00 | S155: 0
B156: DIDACTIC GAMES | C156: NCD-0003-02 | D156: 0630902092164 | E156: Alphabet didactic pieces - Minnie Abecedario piezas didacticas - Minnie | F156: 11.41 x 7.48 in | G156: 29 x 19 cm | H156: 48 | I156: 12 | J156: 0.214 | K156: 33 x 30 x 23.5 | L156: =J156*H156 -> 10.272 | M156: 0.023 | N156: $2.04 | P156: 0 | Q156: 0 | R156: 0.00 | S156: 0
B157: DIDACTIC GAMES | C157: NCD-0003-03 | D157: 0630902095257 | E157: Alphabet didactic pieces - Spidey Abecedario piezas didacticas - Spidey | F157: 11.41 x 7.48 in | G157: 28 x 19 cm | H157: 48 | I157: 12 | J157: 0.214 | K157: 33 x 30 x 23.5 | L157: 10.272 | M157: 0.023 | N157: $2.04 | P157: 0 | Q157: 0 | R157: 0.00 | S157: 0
B158: DIDACTIC GAMES | C158: NCD-0003-04 | D158: 0630902097916 | E158: Alphabet didactic pieces - Miles Abecedario piezas didacticas - Miles | F158: 11.41 x 7.48 in | G158: 28 x 19 cm | H158: 48 | I158: 12 | J158: 0.214 | K158: 33 x 30 x 23.5 | L158: 10.272 | M158: 0.023 | N158: $2.04 | P158: 0 | Q158: 0 | R158: 0.00 | S158: 0
B159: DIDACTIC GAMES | C159: NCD-0003-05 | D159: 0630902097923 | E159: Alphabet didactic pieces - Princess Abecedario piezas didacticas - Princesas | F159: 11.41 x 7.48 in | G159: 29 x 19 cm | H159: 48 | I159: 12 | J159: 0.214 | K159: 33 x 30 x 23.5 | L159: 10.272 | M159: 0.023 | N159: $2.04 | P159: 0 | Q159: 0 | R159: 0.00 | S159: 0
B160: DIDACTIC GAMES | C160: NCD-0003-06 | D160: 0630902097930 | E160: Alphabet didactic pieces - Princess Abecedario piezas didacticas - Pricess | F160: 11.41 x 7.48 in | G160: 29 x 19 cm | H160: 48 | I160: 12 | J160: 0.214 | K160: 33 x 30 x 23.5 | L160: 10.272 | M160: 0.023 | N160: $2.04 | P160: 0 | Q160: 0 | R160: 0.00 | S160: 0
B161: DIDACTIC GAMES | C161: NCD-0003-07 | D161: 0630902097947 | E161: Alphabet didactic pieces - Stitch Abecedario piezas didacticas - Stitch | F161: 11.41 x 7.48 in | G161: 29 x 19 cm | H161: 48 | I161: 12 | J161: 0.214 | K161: 33 x 30 x 23.5 | L161: 10.272 | M161: 0.023 | N161: $2.04 | P161: 0 | Q161: 0 | R161: 0.00 | S161: 0
B162: DIDACTIC GAMES | C162: NCD-0004-01 | D162: 0630902090252 | E162: Geomatric figures board - Mickey Tabla de figuras geometricas- Mickey | F162: 11.41 x 7.48 in | G162: 29 x 19 cm | H162: 48 | I162: 12 | J162: 0.214 | K162: 33 x 30 x 23.5 | L162: 10.272 | M162: 0.023 | N162: $2.04 | P162: 0 | Q162: 0 | R162: 0.00 | S162: 0
B163: DIDACTIC GAMES | C163: NCD-0004-02 | D163: 0630902092584 | E163: Geomatric figures board - Minnie Tabla de figuras geometricas- Minnie | F163: 11.41 x 7.48 in | G163: 29 x 19 cm | H163: 48 | I163: 12 | J163: 0.214 | K163: 33 x 30 x 23.5 | L163: 10.272 | M163: 0.023 | N163: $2.04 | P163: 0 | Q163: 0 | R163: 0.00 | S163: 0
B164: DIDACTIC GAMES | C164: NCD-0004-07 | D164: 0630902093451 | E164: Geomatric figures board - Spidey Tabla de figuras geometricas- Spidey | F164: 11.41 x 7.48 in | G164: 29 x 19 cm | H164: 48 | I164: 12 | J164: 0.214 | K164: 33 x 30 x 23.5 | L164: 10.272 | M164: 0.023 | N164: $2.04 | P164: 0 | Q164: 0 | R164: 0.00 | S164: 0
B165: DIDACTIC GAMES | C165: NCD-0004-08 | D165: 0630902097954 | E165: Geomatric figures board - Miles Tabla de figuras geometricas- Miles | F165: 11.41 x 7.48 in | G165: 29 x 19 cm | H165: 48 | I165: 12 | J165: 0.214 | K165: 33 x 30 x 23.5 | L165: 10.272 | M165: 0.023 | N165: $2.04 | P165: 0 | Q165: 0 | R165: 0.00 | S165: 0
B166: DIDACTIC GAMES | C166: NCD-0004-03 | D166: 0630902092591 | E166: Geomatric figures board - Frozen Tabla de figuras geometricas- Frozen | F166: 11.41 x 7.48 in | G166: 29 x 19 cm | H166: 48 | I166: 12 | J166: 0.214 | K166: 33 x 30 x 23.5 | L166: 10.272 | M166: 0.023 | N166: $2.04 | P166: 0 | Q166: 0 | R166: 0.00 | S166: 0
B167: DIDACTIC GAMES | C167: NCD-0004-08 | D167: 0630902092607 | E167: Geomatric figures board - Princess Tabla de figuras geometricas- Princesas | F167: 11.41 x 7.48 in | G167: 29 x 19 cm | H167: 48 | I167: 12 | J167: 0.214 | K167: 33 x 30 x 23.5 | L167: 10.272 | M167: 0.023 | N167: $2.04 | P167: 0 | Q167: 0 | R167: 0.00 | S167: 0
B168: DIDACTIC GAMES | C168: NCD-0004-09 | D168: 0630902097961 | E168: Geomatric figures board - Stitch Tabla de figuras geometricas- Stitch | F168: 11.41 x 7.48 in | G168: 29 x 19 cm | H168: 48 | I168: 12 | J168: 0.214 | K168: 33 x 30 x 23.5 | L168: 10.272 | M168: 0.023 | N168: $2.04 | P168: 0 | Q168: 0 | R168: 0.00 | S168: 0
B169: DIDACTIC GAMES | C169: NCD-0005-01 | D169: 0684659942180 | E169: Body Parts - Mickey Partes del cuerpo - Mickey | F169: 7.48 x 11.41 in | G169: 21 x 29 cm | H169: 48 | I169: 12 | J169: 0.214 | K169: 33 x 30 x 23.5 | L169: 10.272 | M169: 0.023 | N169: $2.04 | P169: 0 | Q169: 0 | R169: 0.00 | S169: 0
B170: DIDACTIC GAMES | C170: NCD-0005-02 | D170: 0684659942197 | E170: Body Parts - Minnie Partes del cuerpo - Minnie | F170: 7.48 x 11.41 in | G170: 19 x 29 cm | H170: 48 | I170: 12 | J170: 0.214 | K170: 33 x 30 x 23.5 | L170: 10.272 | M170: 0.023 | N170: $2.04 | P170: 0 | Q170: 0 | R170: 0.00 | S170: 0
B171: DIDACTIC GAMES | C171: NCD-0005-03 | D171: 0630902097978 | E171: Body Parts - Spidey Partes del cuerpo - Spidey | F171: 7.48 x 11.41 in | G171: 19 x 29 cm | H171: 48 | I171: 12 | J171: 0.214 | K171: 33 x 30 x 23.5 | L171: 10.272 | M171: 0.023 | N171: $2.04 | P171: 0 | Q171: 0 | R171: 0.00 | S171: 0
B172: DIDACTIC GAMES | C172: NCD-0005-04 | D172: 0630902097985 | E172: Body Parts - Miles Partes del cuerpo - Miles | F172: 7.48 x 11.41 in | G172: 19 x 29 cm | H172: 48 | I172: 12 | J172: 0.214 | K172: 33 x 30 x 23.5 | L172: 10.272 | M172: 0.023 | N172: $2.04 | P172: 0 | Q172: 0 | R172: 0.00 | S172: 0
B173: DIDACTIC GAMES | C173: NCD-0005-05 | D173: 0630902097992 | E173: Body Parts - Frozen Partes del cuerpo - Frozen | F173: 7.48 x 11.41 in | G173: 19 x 29 cm | H173: 48 | I173: 12 | J173: 0.214 | K173: 33 x 30 x 23.5 | L173: 10.272 | M173: 0.023 | N173: $2.04 | P173: 0 | Q173: 0 | R173: 0.00 | S173: 0
B174: DIDACTIC GAMES | C174: NCD-0005-06 | D174: 0630902098005 | E174: Body Parts - Princess Partes del cuerpo - Princesas | F174: 7.48 x 11.41 in | G174: 19 x 29 cm | H174: 48 | I174: 12 | J174: 0.214 | K174: 33 x 30 x 23.5 | L174: 10.272 | M174: 0.023 | N174: $2.04 | P174: 0 | Q174: 0 | R174: 0.00 | S174: 0
B175: DIDACTIC GAMES | C175: NCD-0005-07 | D175: 0630902098012 | E175: Body Parts - Stitch Partes del cuerpo - Stitch | F175: 7.48 x 11.41 in | G175: 19 x 29 cm | H175: 48 | I175: 12 | J175: 0.214 | K175: 33 x 30 x 23.5 | L175: 10.272 | M175: 0.023 | N175: $2.04 | P175: 0 | Q175: 0 | R175: 0.00 | S175: 0
B176: DIDACTIC GAMES | C176: NCD-0006-01 | D176: 0606795557547 | E176: Puzzle Learning Clock - Mickey Reloj de aprendizaje Rompecabezas - Mickey | F176: 11.41 IN | G176: 29 CM | H176: 24 | I176: 6 | J176: 0.254 | K176: 44.2x30.5x31 | L176: 6.096 | M176: =0.442*0.3*0.31 -> 0.041106 | N176: $3.19 | P176: 0 | Q176: 0 | R176: 0.00 | S176: 0
B177: DIDACTIC GAMES | C177: NCD-0006-02 | D177: 0606795557554 | E177: Puzzle Learning Clock - Minnie Reloj de aprendizaje Rompecabezas - Minnie | F177: 11.41 IN | G177: 29 CM | H177: 24 | I177: 6 | J177: 0.254 | K177: 44.2x30.5x31 | L177: 6.096 | M177: 0.041106 | N177: $3.41 | P177: 0 | Q177: 0 | R177: 0.00 | S177: 0
B178: DIDACTIC GAMES | C178: NCD-0006-06 | D178: 0630902095264 | E178: Puzzle Learning Clock - Spidey Reloj de aprendizaje Rompecabezas - Spidey | F178: 11.41 IN | G178: 29 CM | H178: 24 | I178: 6 | J178: 0.254 | K178: 44.2x30.5x31 | L178: 6.096 | M178: 0.041106 | N178: $3.41 | P178: 0 | Q178: 0 | R178: 0.00 | S178: 0
B179: DIDACTIC GAMES | C179: NCD-0006-07 | D179: 0630902098029 | E179: Puzzle Learning Clock - Miles Reloj de aprendizaje Rompecabezas - Miles | F179: 11.41 IN | G179: 29 CM | H179: 24 | I179: 6 | J179: 0.254 | K179: 44.2x30.5x31 | L179: 6.096 | M179: 0.041106 | N179: $3.41 | P179: 0 | Q179: 0 | R179: 0.00 | S179: 0
B180: DIDACTIC GAMES | C180: NCD-0006-03 | D180: 00606795557561 | E180: Puzzle Learning Clock - Frozen Reloj de aprendizaje Rompecabezas - Frozen | F180: 11.41 IN | G180: 29 CM | H180: 24 | I180: 6 | J180: 0.254 | K180: 44.2x30.5x31 | L180: 6.096 | M180: 0.041106 | N180: $3.41 | P180: 0 | Q180: 0 | R180: 0.00 | S180: 0
B181: DIDACTIC GAMES | C181: NCD-0006-04 | D181: 00606795557578 | E181: Puzzle Learning Clock - Princesas Reloj de aprendizaje Rompecabezas - Princesas | F181: 11.41 IN | G181: 29 CM | H181: 24 | I181: 6 | J181: 0.254 | K181: 44.2x30.5x31 | L181: 6.096 | M181: 0.041106 | N181: $3.41 | P181: 0 | Q181: 0 | R181: 0.00 | S181: 0
B182: DIDACTIC GAMES | C182: NCD-0006-08 | D182: 0630902098036 | E182: Puzzle Learning Clock - Stitch Reloj de aprendizaje Rompecabezas - Stitch | F182: 11.41 IN | G182: 29 CM | H182: 24 | I182: 6 | J182: 0.254 | K182: 44.2x30.5x31 | L182: 6.096 | M182: 0.041106 | N182: $3.41 | P182: 0 | Q182: 0 | R182: 0.00 | S182: 0
B183: DIDACTIC GAMES | C183: HCD-0002-01 | D183: 0630902098043 | E183: Interactive table addition- Mickey Tabla interactiva Sumas - Mickey | F183: 11.41 x 7.48 in | G183: 29 x 39 cm | H183: 20 | I183: 5 | J183: 0.495 | K183: 40x28x20 | L183: 9.900 | M183: =0.4*0.28*0.2 -> 0.0224 | N183: $3.41 | P183: 0 | Q183: 0 | R183: 0.00 | S183: 0
B184: DIDACTIC GAMES | C184: HCD-0002-02 | D184: 0630902098050 | E184: Interactive table addition- Minnie Tabla interactiva Sumas - Minnie | F184: 11.41 x 7.48 in | G184: 29 x 39 cm | H184: 20 | I184: 5 | J184: 0.495 | K184: 40x28x20 | L184: =J184*H184 -> 9.900 | M184: 0.0224 | N184: $3.41 | P184: 0 | Q184: 0 | R184: 0.00 | S184: 0
B185: DIDACTIC GAMES | C185: HCD-0002-03 | D185: 0630902098067 | E185: Interactive table addition- Spidey Tabla interactiva Sumas - Spidey | F185: 11.41 x 7.48 in | G185: 29 x 39 cm | H185: 20 | I185: 5 | J185: 0.495 | K185: 40x28x20 | L185: =J185*H185 -> 9.900 | M185: 0.0224 | N185: $3.41 | P185: 0 | Q185: 0 | R185: 0.00 | S185: 0
B186: DIDACTIC GAMES | C186: HCD-0002-04 | D186: 0630902098074 | E186: Interactive table addition- IMiles Tabla interactiva Sumas - Miles | F186: 11.41 x 7.48 in | G186: 29 x 39 cm | H186: 20 | I186: 5 | J186: 0.495 | K186: 40x28x20 | L186: =J186*H186 -> 9.900 | M186: 0.0224 | N186: $3.41 | P186: 0 | Q186: 0 | R186: 0.00 | S186: 0
B187: DIDACTIC GAMES | C187: HCD-0002-05 | D187: 0630902098081 | E187: Interactive table addition-Princess Tabla interactiva Sumas - Princesas | F187: 11.41 x 7.48 in | G187: 29 x 39 cm | H187: 20 | I187: 5 | J187: 0.495 | K187: 40x28x20 | L187: 9.900 | M187: 0.0224 | N187: $3.41 | P187: 0 | Q187: 0 | R187: 0.00 | S187: 0
B188: DIDACTIC GAMES | C188: HCD-0002-06 | D188: 0630902098098 | E188: Interactive table addition- Frozen Tabla interactiva Sumas - Frozen | F188: 11.41 x 7.48 in | G188: 29 x 39 cm | H188: 20 | I188: 5 | J188: 0.495 | K188: 40x28x20 | L188: =J188*H188 -> 9.900 | M188: 0.0224 | N188: $3.41 | P188: 0 | Q188: 0 | R188: 0.00 | S188: 0
B189: DIDACTIC GAMES | C189: HCD-0002-07 | D189: 0630902098104 | E189: Interactive table addition- Stitch Tabla interactiva Sumas - Stitch | F189: 11.41 x 7.48 in | G189: 29 x 39 cm | H189: 20 | I189: 5 | J189: 0.495 | K189: 40x28x20 | L189: =J189*H189 -> 9.900 | M189: 0.0224 | N189: $3.41 | P189: 0 | Q189: 0 | R189: 0.00 | S189: 0
B190: DIDACTIC GAMES | C190: HCD-0003-01 | D190: 0630902098111 | E190: Interactive table Subtractions- Mickey Tabla interactiva Restas - Mickey | F190: 11.41 x 7.48 in | G190: 29 x 39 cm | H190: 20 | I190: 5 | J190: 0.495 | K190: 40x28x20 | L190: 9.900 | M190: 0.0224 | N190: $3.41 | P190: 0 | Q190: 0 | R190: 0.00 | S190: 0
B191: DIDACTIC GAMES | C191: HCD-0003-02 | D191: 0630902098128 | E191: Interactive table Subtractions- Minnie Tabla interactiva Restas - Minnie | F191: 11.41 x 7.48 in | G191: 29 x 39 cm | H191: 20 | I191: 5 | J191: 0.495 | K191: 40x28x20 | L191: 9.900 | M191: 0.0224 | N191: $3.41 | P191: 0 | Q191: 0 | R191: 0.00 | S191: 0
B192: DIDACTIC GAMES | C192: HCD-0003-03 | D192: 0630902098135 | E192: Interactive table Subtractions- Spidey Tabla interactiva Restas - Spidey | F192: 11.41 x 7.48 in | G192: 29 x 39 cm | H192: 20 | I192: 5 | J192: 0.495 | K192: 40x28x20 | L192: 9.900 | M192: 0.0224 | N192: $3.41 | P192: 0 | Q192: 0 | R192: 0.00 | S192: 0
B193: DIDACTIC GAMES | C193: HCD-0003-04 | D193: 0630902098142 | E193: Interactive table Subtractions- IMiles Tabla interactiva Restas - Miles | F193: 11.41 x 7.48 in | G193: 29 x 39 cm | H193: 20 | I193: 5 | J193: 0.495 | K193: 40x28x20 | L193: 9.900 | M193: 0.0224 | N193: $3.41 | P193: 0 | Q193: 0 | R193: 0.00 | S193: 0
B194: DIDACTIC GAMES | C194: HCD-0003-05 | D194: 0630902098159 | E194: Interactive table Subtractions-Princess Tabla interactiva Restas - Princesas | F194: 11.41 x 7.48 in | G194: 29 x 39 cm | H194: 20 | I194: 5 | J194: 0.495 | K194: 40x28x20 | L194: 9.900 | M194: 0.0224 | N194: $3.41 | P194: 0 | Q194: 0 | R194: 0.00 | S194: 0
B195: DIDACTIC GAMES | C195: HCD-0003-06 | D195: 0630902098166 | E195: Interactive table Subtractions- Frozen Tabla interactiva Restas - Frozen | F195: 11.41 x 7.48 in | G195: 29 x 39 cm | H195: 20 | I195: 5 | J195: 0.495 | K195: 40x28x20 | L195: 9.900 | M195: 0.0224 | N195: $3.41 | P195: 0 | Q195: 0 | R195: 0.00 | S195: 0
B196: DIDACTIC GAMES | C196: HCD-0003-07 | D196: 0630902098173 | E196: Interactive table Subtractions- Stitch Tabla interactiva Restas - Stitch | F196: 11.41 x 7.48 in | G196: 29 x 39 cm | H196: 20 | I196: 5 | J196: 0.495 | K196: 40x28x20 | L196: =J196*H196 -> 9.900 | M196: 0.0224 | N196: $3.41 | P196: 0 | Q196: 0 | R196: 0.00 | S196: 0
B197: DIDACTIC GAMES | C197: HCD-0004-01 | D197: 0630902095332 | E197: Alphabet didactic pieces - Mickey Abecedario piezas didacticas - Mickey | F197: 11.41 x 7.48 in | G197: 29 x 39 cm | H197: 20 | I197: 5 | J197: 0.495 | K197: 40x28x20 | L197: =J197*H197 -> 9.900 | M197: =0.4*0.28*0.2 -> 0.0224 | N197: $3.41 | P197: 0 | Q197: 0 | R197: 0.00 | S197: 0
B198: DIDACTIC GAMES | C198: HCD-0004-02 | D198: 0630902095349 | E198: Alphabet didactic pieces - Minnie Abecedario piezas didacticas - Minnie | F198: 11.41 x 7.48 in | G198: 29 x 39 cm | H198: 20 | I198: 5 | J198: 0.495 | K198: 40x28x20 | L198: =J198*H198 -> 9.900 | M198: 0.0224 | N198: $3.41 | P198: 0 | Q198: 0 | R198: 0.00 | S198: 0
B199: DIDACTIC GAMES | C199: HCD-0004-03 | D199: 0630902095356 | E199: Alphabet didactic pieces - Spidey Abecedario piezas didacticas - Spidey | F199: 11.41 x 7.48 in | G199: 29 x 39 cm | H199: 20 | I199: 5 | J199: 0.495 | K199: 40x28x20 | L199: 9.900 | M199: 0.0224 | N199: $3.41 | P199: 0 | Q199: 0 | R199: 0.00 | S199: 0
B200: DIDACTIC GAMES | C200: HCD-0004-04 | D200: 0630902098180 | E200: Alphabet didactic pieces - Miles Abecedario piezas didacticas - Miles | F200: 11.41 x 7.48 in | G200: 29 x 39 cm | H200: 20 | I200: 5 | J200: 0.495 | K200: 40x28x20 | L200: 9.900 | M200: 0.0224 | N200: $3.41 | P200: 0 | Q200: 0 | R200: 0.00 | S200: 0
B201: DIDACTIC GAMES | C201: HCD-0004-05 | D201: 0630902098197 | E201: Alphabet didactic pieces - Frozen Abecedario piezas didacticas - Frozen | F201: 11.41 x 7.48 in | G201: 29 x 39 cm | H201: 20 | I201: 5 | J201: 0.495 | K201: 40x28x20 | L201: =J201*H201 -> 9.900 | M201: 0.0224 | N201: $3.41 | P201: 0 | Q201: 0 | R201: 0.00 | S201: 0
... 143 more rows
